{"text_format":"1","workbook":"xlsx","n_sheets":3,"sheets":["Zoznam skladových zásob","Zoznam vyskladnenia zásob","Vyhľadanie priehradky"],"not_rendered":{"charts":0,"images":0,"macros":1,"external_links":0,"defined_names":8,"comments":0,"pivot_tables":0},"unopened":[],"bounds":{"document_bytes":16777216,"sheet_cells":100000,"rows_first":2000,"rows_last":500,"rows_between":2000,"halvings":0,"cell_chars":16384,"cell_head_chars":4096},"cells_cut":0,"cells_raw":0,"read":"whole","date_system":"1900"}

{"sheet":"Zoznam skladových zásob","index":0,"n_rows":15,"n_cols":11,"rows_kept":15,"cut":false,"hidden":false,"merged":[]}
[null,"ZOZNAM SKLADOVÝCH ZÁSOB"]
[null,"CELKOVÁ HODNOTA INVENTÁRA","POLOŽKY INVENTÁRA:","POČET PRIEHRADIEK:","ZOZNAM VYSKLADNENIA ZÁSOB","VYHĽADANIE PRIEHRADKY"]
[null,{"$f":"SUM(ZoznamInventára[HODNOTA INVENTÁRA])","v":4649},{"$f":"COUNTA(ZoznamInventára[POPIS])","v":11},{"$f":"SUMPRODUCT((1/COUNTIF(ZoznamInventára[ČÍSLO PRIEHRADKY],ZoznamInventára[ČÍSLO PRIEHRADKY]&\"\")))","v":6}]
[null,"SKU","POPIS","ČÍSLO PRIEHRADKY","UMIESTNENIE","BALENIE","MNOŽSTVO","MNOŽSTVO NA DOOBJEDNANIE","CENA","HODNOTA INVENTÁRA","DOOBJEDNANIE"]
[null,"SP7875","Položka 1","T345",{"$f":"IFERROR(VLOOKUP(ZoznamInventára[[#This Row],[ČÍSLO PRIEHRADKY]],VyhľadaniePriehradky[],3,FALSE),\"\")","v":"Rad 2, zásuvka 1"},"Kus",20,10,30,{"$f":"ZoznamInventára[[#This Row],[MNOŽSTVO]]*ZoznamInventára[[#This Row],[CENA]]","v":600},{"$f":"IFERROR(IF(ZoznamInventára[[#This Row],[MNOŽSTVO]]<=ZoznamInventára[[#This Row],[MNOŽSTVO NA DOOBJEDNANIE]],1,0),0)","v":0}]
[null,"TR87680","Položka 2","T345",{"$f":"IFERROR(VLOOKUP(ZoznamInventára[[#This Row],[ČÍSLO PRIEHRADKY]],VyhľadaniePriehradky[],3,FALSE),\"\")","v":"Rad 2, zásuvka 1"},"Kus",30,15,40,{"$f":"ZoznamInventára[[#This Row],[MNOŽSTVO]]*ZoznamInventára[[#This Row],[CENA]]","v":1200},{"$f":"IFERROR(IF(ZoznamInventára[[#This Row],[MNOŽSTVO]]<=ZoznamInventára[[#This Row],[MNOŽSTVO NA DOOBJEDNANIE]],1,0),0)","v":0}]
[null,"MK676554","Položka 3","T5789",{"$f":"IFERROR(VLOOKUP(ZoznamInventára[[#This Row],[ČÍSLO PRIEHRADKY]],VyhľadaniePriehradky[],3,FALSE),\"\")","v":"Rad 1, zásuvka 1"},"Kus",10,5,5,{"$f":"ZoznamInventára[[#This Row],[MNOŽSTVO]]*ZoznamInventára[[#This Row],[CENA]]","v":50},{"$f":"IFERROR(IF(ZoznamInventára[[#This Row],[MNOŽSTVO]]<=ZoznamInventára[[#This Row],[MNOŽSTVO NA DOOBJEDNANIE]],1,0),0)","v":0}]
[null,"YE98767","Položka 4","T9876",{"$f":"IFERROR(VLOOKUP(ZoznamInventára[[#This Row],[ČÍSLO PRIEHRADKY]],VyhľadaniePriehradky[],3,FALSE),\"\")","v":"Rad 3, zásuvka 2"},"Škatuľa (10 ks)",40,10,15,{"$f":"ZoznamInventára[[#This Row],[MNOŽSTVO]]*ZoznamInventára[[#This Row],[CENA]]","v":600},{"$f":"IFERROR(IF(ZoznamInventára[[#This Row],[MNOŽSTVO]]<=ZoznamInventára[[#This Row],[MNOŽSTVO NA DOOBJEDNANIE]],1,0),0)","v":0}]
[null,"XR23423","Položka 5","T098",{"$f":"IFERROR(VLOOKUP(ZoznamInventára[[#This Row],[ČÍSLO PRIEHRADKY]],VyhľadaniePriehradky[],3,FALSE),\"\")","v":"Rad 3, zásuvka 1"},"Kus",12,10,26,{"$f":"ZoznamInventára[[#This Row],[MNOŽSTVO]]*ZoznamInventára[[#This Row],[CENA]]","v":312},{"$f":"IFERROR(IF(ZoznamInventára[[#This Row],[MNOŽSTVO]]<=ZoznamInventára[[#This Row],[MNOŽSTVO NA DOOBJEDNANIE]],1,0),0)","v":0}]
[null,"PW98762","Položka 6","T345",{"$f":"IFERROR(VLOOKUP(ZoznamInventára[[#This Row],[ČÍSLO PRIEHRADKY]],VyhľadaniePriehradky[],3,FALSE),\"\")","v":"Rad 2, zásuvka 1"},"Kus",7,10,50,{"$f":"ZoznamInventára[[#This Row],[MNOŽSTVO]]*ZoznamInventára[[#This Row],[CENA]]","v":350},{"$f":"IFERROR(IF(ZoznamInventára[[#This Row],[MNOŽSTVO]]<=ZoznamInventára[[#This Row],[MNOŽSTVO NA DOOBJEDNANIE]],1,0),0)","v":1}]
[null,"BM87684","Položka 7","T349",{"$f":"IFERROR(VLOOKUP(ZoznamInventára[[#This Row],[ČÍSLO PRIEHRADKY]],VyhľadaniePriehradky[],3,FALSE),\"\")","v":"Rad 1, zásuvka 2"},"Kus",10,5,10,{"$f":"ZoznamInventára[[#This Row],[MNOŽSTVO]]*ZoznamInventára[[#This Row],[CENA]]","v":100},{"$f":"IFERROR(IF(ZoznamInventára[[#This Row],[MNOŽSTVO]]<=ZoznamInventára[[#This Row],[MNOŽSTVO NA DOOBJEDNANIE]],1,0),0)","v":0}]
[null,"BH67655","Položka 8","T5789",{"$f":"IFERROR(VLOOKUP(ZoznamInventára[[#This Row],[ČÍSLO PRIEHRADKY]],VyhľadaniePriehradky[],3,FALSE),\"\")","v":"Rad 1, zásuvka 1"},"Kus",19,10,3,{"$f":"ZoznamInventára[[#This Row],[MNOŽSTVO]]*ZoznamInventára[[#This Row],[CENA]]","v":57},{"$f":"IFERROR(IF(ZoznamInventára[[#This Row],[MNOŽSTVO]]<=ZoznamInventára[[#This Row],[MNOŽSTVO NA DOOBJEDNANIE]],1,0),0)","v":0}]
[null,"WT98768","Položka 9","T9875",{"$f":"IFERROR(VLOOKUP(ZoznamInventára[[#This Row],[ČÍSLO PRIEHRADKY]],VyhľadaniePriehradky[],3,FALSE),\"\")","v":"Rad 2, zásuvka 2"},"Balík (5 ks)",20,30,14,{"$f":"ZoznamInventára[[#This Row],[MNOŽSTVO]]*ZoznamInventára[[#This Row],[CENA]]","v":280},{"$f":"IFERROR(IF(ZoznamInventára[[#This Row],[MNOŽSTVO]]<=ZoznamInventára[[#This Row],[MNOŽSTVO NA DOOBJEDNANIE]],1,0),0)","v":1}]
[null,"TS3456","Položka 10","T349",{"$f":"IFERROR(VLOOKUP(ZoznamInventára[[#This Row],[ČÍSLO PRIEHRADKY]],VyhľadaniePriehradky[],3,FALSE),\"\")","v":"Rad 1, zásuvka 2"},"Kus",15,8,60,{"$f":"ZoznamInventára[[#This Row],[MNOŽSTVO]]*ZoznamInventára[[#This Row],[CENA]]","v":900},{"$f":"IFERROR(IF(ZoznamInventára[[#This Row],[MNOŽSTVO]]<=ZoznamInventára[[#This Row],[MNOŽSTVO NA DOOBJEDNANIE]],1,0),0)","v":0}]
[null,"WDG123","Položka 11","T349",{"$f":"IFERROR(VLOOKUP(ZoznamInventára[[#This Row],[ČÍSLO PRIEHRADKY]],VyhľadaniePriehradky[],3,FALSE),\"\")","v":"Rad 1, zásuvka 2"},"Kus",25,15,8,{"$f":"ZoznamInventára[[#This Row],[MNOŽSTVO]]*ZoznamInventára[[#This Row],[CENA]]","v":200},{"$f":"IFERROR(IF(ZoznamInventára[[#This Row],[MNOŽSTVO]]<=ZoznamInventára[[#This Row],[MNOŽSTVO NA DOOBJEDNANIE]],1,0),0)","v":0}]

{"sheet":"Zoznam vyskladnenia zásob","index":1,"n_rows":9,"n_cols":9,"rows_kept":9,"cut":false,"hidden":false,"merged":[]}
[null,"ZOZNAM VYSKLADNENIA ZÁSOB"]
[null,null,"ZOZNAM INVENTÁRA"]
[]
[null,"ČÍSLO OBJEDNÁVKY","SKU","MNOŽSTVO NA VYSKLADNENIE","DOSTUPNÉ MNOŽSTVO","POPIS POLOŽKY","BALENIE","ČÍSLO PRIEHRADKY","UMIESTNENIE"]
[null,"TP001-1","SP7875",3,{"$f":"IFERROR(VLOOKUP(ZoznamVyskladneniaZásob[SKU],ZoznamInventára[],6,FALSE),\"\")","v":20},{"$f":"IFERROR(VLOOKUP(ZoznamVyskladneniaZásob[SKU],ZoznamInventára[],2,FALSE),\"\")","v":"Položka 1"},{"$f":"IFERROR(VLOOKUP(ZoznamVyskladneniaZásob[SKU],ZoznamInventára[],5,FALSE),\"\")","v":"Kus"},{"$f":"IFERROR(VLOOKUP(ZoznamVyskladneniaZásob[SKU],ZoznamInventára[],3,FALSE),\"\")","v":"T345"},{"$f":"IFERROR(VLOOKUP(ZoznamVyskladneniaZásob[SKU],ZoznamInventára[],4,FALSE),\"\")","v":"Rad 2, zásuvka 1"}]
[null,"TP001-1","YE98767",1,{"$f":"IFERROR(VLOOKUP(ZoznamVyskladneniaZásob[SKU],ZoznamInventára[],6,FALSE),\"\")","v":40},{"$f":"IFERROR(VLOOKUP(ZoznamVyskladneniaZásob[SKU],ZoznamInventára[],2,FALSE),\"\")","v":"Položka 4"},{"$f":"IFERROR(VLOOKUP(ZoznamVyskladneniaZásob[SKU],ZoznamInventára[],5,FALSE),\"\")","v":"Škatuľa (10 ks)"},{"$f":"IFERROR(VLOOKUP(ZoznamVyskladneniaZásob[SKU],ZoznamInventára[],3,FALSE),\"\")","v":"T9876"},{"$f":"IFERROR(VLOOKUP(ZoznamVyskladneniaZásob[SKU],ZoznamInventára[],4,FALSE),\"\")","v":"Rad 3, zásuvka 2"}]
[null,"TP001-1","BM87684",2,{"$f":"IFERROR(VLOOKUP(ZoznamVyskladneniaZásob[SKU],ZoznamInventára[],6,FALSE),\"\")","v":10},{"$f":"IFERROR(VLOOKUP(ZoznamVyskladneniaZásob[SKU],ZoznamInventára[],2,FALSE),\"\")","v":"Položka 7"},{"$f":"IFERROR(VLOOKUP(ZoznamVyskladneniaZásob[SKU],ZoznamInventára[],5,FALSE),\"\")","v":"Kus"},{"$f":"IFERROR(VLOOKUP(ZoznamVyskladneniaZásob[SKU],ZoznamInventára[],3,FALSE),\"\")","v":"T349"},{"$f":"IFERROR(VLOOKUP(ZoznamVyskladneniaZásob[SKU],ZoznamInventára[],4,FALSE),\"\")","v":"Rad 1, zásuvka 2"}]
[null,"TP001-1","TS3456",6,{"$f":"IFERROR(VLOOKUP(ZoznamVyskladneniaZásob[SKU],ZoznamInventára[],6,FALSE),\"\")","v":15},{"$f":"IFERROR(VLOOKUP(ZoznamVyskladneniaZásob[SKU],ZoznamInventára[],2,FALSE),\"\")","v":"Položka 10"},{"$f":"IFERROR(VLOOKUP(ZoznamVyskladneniaZásob[SKU],ZoznamInventára[],5,FALSE),\"\")","v":"Kus"},{"$f":"IFERROR(VLOOKUP(ZoznamVyskladneniaZásob[SKU],ZoznamInventára[],3,FALSE),\"\")","v":"T349"},{"$f":"IFERROR(VLOOKUP(ZoznamVyskladneniaZásob[SKU],ZoznamInventára[],4,FALSE),\"\")","v":"Rad 1, zásuvka 2"}]
[null,"TP001-1","MK676554",3,{"$f":"IFERROR(VLOOKUP(ZoznamVyskladneniaZásob[SKU],ZoznamInventára[],6,FALSE),\"\")","v":10},{"$f":"IFERROR(VLOOKUP(ZoznamVyskladneniaZásob[SKU],ZoznamInventára[],2,FALSE),\"\")","v":"Položka 3"},{"$f":"IFERROR(VLOOKUP(ZoznamVyskladneniaZásob[SKU],ZoznamInventára[],5,FALSE),\"\")","v":"Kus"},{"$f":"IFERROR(VLOOKUP(ZoznamVyskladneniaZásob[SKU],ZoznamInventára[],3,FALSE),\"\")","v":"T5789"},{"$f":"IFERROR(VLOOKUP(ZoznamVyskladneniaZásob[SKU],ZoznamInventára[],4,FALSE),\"\")","v":"Rad 1, zásuvka 1"}]

{"sheet":"Vyhľadanie priehradky","index":2,"n_rows":11,"n_cols":7,"rows_kept":11,"cut":false,"hidden":false,"merged":[]}
[null,"VYHĽADANIE PRIEHRADKY"]
[null,"ZOZNAM INVENTÁRA"]
[]
[null,"ČÍSLO PRIEHRADKY","POPIS","UMIESTNENIE","ŠÍRKA","VÝŠKA","DĹŽKA"]
[null,"T345","Veľká priehradka","Rad 2, zásuvka 1",50,10,10]
[null,"T5789","Malá priehradka","Rad 1, zásuvka 1",25,5,5]
[null,"T9876","Veľká priehradka","Rad 3, zásuvka 2",50,10,10]
[null,"T098","Stredná priehradka","Rad 3, zásuvka 1",30,7,10]
[null,"T349","Malá priehradka","Rad 1, zásuvka 2",25,5,5]
[null,"T5789","Veľká priehradka","Rad 4, zásuvka 5",50,10,10]
[null,"T9875","Veľká priehradka","Rad 2, zásuvka 2",50,10,10]